[Event "Titled Tuesday Blitz April 11 Early 2023"]
[White "Zemlyanskii, Ivan"]
[Black "Makarian, Rudik"]
[WhiteFideId "24249971"]
[BlackFideId "44105681"]
[WhiteElo "2419"]
[BlackElo "2430"]
[Result "1-0"]
[Round "09"]
[TimeControl "180+2"]
[Date "2023.04.11"]
[WhiteClock "0:00:13"]
[BlackClock "0:00:05"]

1. d4 {[%clk 0:03:00]}  Nf6 {[%clk 0:02:57]} 2. c4 {[%clk 0:03:00]}  e6 {[%clk 0:02:57]} 3. Bf4 {[%clk 0:03:00]}  d5 {[%clk 0:02:57]} 4. Nc3 {[%clk 0:02:57]}  Be7 {[%clk 0:02:42]} 5. e3 {[%clk 0:02:56]}  O-O {[%clk 0:02:42]} 6. Nf3 {[%clk 0:02:56]}  Nbd7 {[%clk 0:02:42]} 7. cxd5 {[%clk 0:02:54]}  Nxd5 {[%clk 0:02:41]} 8. Bg3 {[%clk 0:02:43]}  Nxc3 {[%clk 0:02:39]} 9. bxc3 {[%clk 0:02:39]}  b6 {[%clk 0:02:40]} 10. Bd3 {[%clk 0:02:39]}  Bb7 {[%clk 0:02:40]} 11. O-O {[%clk 0:02:39]}  c5 {[%clk 0:02:40]} 12. a4 {[%clk 0:02:38]}  a5 {[%clk 0:02:39]} 13. Qb1 {[%clk 0:02:26]}  h6 {[%clk 0:02:37]} 14. Ne5 {[%clk 0:02:22]}  Nxe5 {[%clk 0:02:24]} 15. Bxe5 {[%clk 0:02:23]}  cxd4 {[%clk 0:02:23]} 16. cxd4 {[%clk 0:02:21]}  Rc8 {[%clk 0:02:15]} 17. Qb3 {[%clk 0:02:10]}  Bb4 {[%clk 0:02:04]} 18. Rfc1 {[%clk 0:02:05]}  Qe7 {[%clk 0:01:57]} 19. h3 {[%clk 0:02:00]}  Bd5 {[%clk 0:01:49]} 20. Qd1 {[%clk 0:01:47]}  Ba3 {[%clk 0:01:00]} 21. Rxc8 {[%clk 0:01:34]}  Rxc8 {[%clk 0:01:00]} 22. Qg4 {[%clk 0:01:19]}  f5 {[%clk 0:00:36]} 23. Qg6 {[%clk 0:01:12]}  Bb4 {[%clk 0:00:29]} 24. g4 {[%clk 0:00:57]}  Qf7 {[%clk 0:00:30]} 25. gxf5 {[%clk 0:00:42]}  exf5 {[%clk 0:00:28]} 26. Bxf5 {[%clk 0:00:36]}  Qxg6+ {[%clk 0:00:20]} 27. Bxg6 {[%clk 0:00:34]}  Be6 {[%clk 0:00:17]} 28. Kg2 {[%clk 0:00:31]}  Bf7 {[%clk 0:00:12]} 29. Bf5 {[%clk 0:00:30]}  Rc6 {[%clk 0:00:11]} 30. e4 {[%clk 0:00:26]}  Bg6 {[%clk 0:00:11]} 31. Bxg6 {[%clk 0:00:24]}  Rxg6+ {[%clk 0:00:12]} 32. Kf3 {[%clk 0:00:24]}  Kf7 {[%clk 0:00:12]} 33. d5 {[%clk 0:00:21]}  Ke7 {[%clk 0:00:12]} 34. Bd4 {[%clk 0:00:21]}  Kd7 {[%clk 0:00:09]} 35. Rc1 {[%clk 0:00:17]}  h5 {[%clk 0:00:05]} 36. e5 {[%clk 0:00:15]}  Rh6 {[%clk 0:00:02]} 37. Ke4 {[%clk 0:00:15]}  Rh8 {[%clk 0:00:02]} 38. e6+ {[%clk 0:00:16]}  Ke7 {[%clk 0:00:02]} 39. Rc7+ {[%clk 0:00:12]}  Kd8 {[%clk 0:00:03]} 40. Rd7+ {[%clk 0:00:13]}  Kc8 {[%clk 0:00:03]} 41. Rxg7 {[%clk 0:00:13]}  b5 {[%clk 0:00:03]} 42. axb5 {[%clk 0:00:13]}  a4 {[%clk 0:00:04]} 43. Ra7 {[%clk 0:00:13]}  Re8 {[%clk 0:00:04]} 44. Rxa4 {[%clk 0:00:13]}  Rxe6+ {[%clk 0:00:04]} 45. dxe6 {[%clk 0:00:13]}  Bc5 {[%clk 0:00:05]} 1-0


[Site "https://www.chess.com"]

[Event "Titled Tuesday Blitz April 11 Early 2023"]
[White "Srihari L R"]
[Black "Eljanov, Pavel"]
[WhiteFideId "46617116"]
[BlackFideId "14102951"]
[WhiteElo "2334"]
[BlackElo "2598"]
[Result "0-1"]
[Round "09"]
[TimeControl "180+2"]
[Date "2023.04.11"]
[WhiteClock "0:00:02"]
[BlackClock "0:01:08"]

1. c4 {[%clk 0:02:55]}  Nf6 {[%clk 0:02:58]} 2. Nc3 {[%clk 0:02:55]}  e5 {[%clk 0:02:58]} 3. Nf3 {[%clk 0:02:54]}  Nc6 {[%clk 0:02:58]} 4. e3 {[%clk 0:02:55]}  Bb4 {[%clk 0:02:50]} 5. Qc2 {[%clk 0:02:45]}  Bxc3 {[%clk 0:02:50]} 6. bxc3 {[%clk 0:02:27]}  O-O {[%clk 0:02:48]} 7. d4 {[%clk 0:02:22]}  d6 {[%clk 0:02:46]} 8. Be2 {[%clk 0:02:21]}  Re8 {[%clk 0:02:38]} 9. a4 {[%clk 0:02:17]}  b6 {[%clk 0:02:36]} 10. Ba3 {[%clk 0:02:12]}  Ba6 {[%clk 0:02:32]} 11. Rd1 {[%clk 0:02:08]}  e4 {[%clk 0:02:27]} 12. Nd2 {[%clk 0:02:07]}  Na5 {[%clk 0:02:27]} 13. Bb4 {[%clk 0:02:00]}  Nb7 {[%clk 0:02:18]} 14. g4 {[%clk 0:01:48]}  c5 {[%clk 0:02:17]} 15. Ba3 {[%clk 0:01:48]}  Qe7 {[%clk 0:02:15]} 16. h4 {[%clk 0:01:45]}  Na5 {[%clk 0:02:14]} 17. g5 {[%clk 0:01:44]}  Nd7 {[%clk 0:02:15]} 18. Rg1 {[%clk 0:01:42]}  Rac8 {[%clk 0:02:09]} 19. Rg4 {[%clk 0:01:38]}  f5 {[%clk 0:02:04]} 20. gxf6 {[%clk 0:01:34]}  Nxf6 {[%clk 0:02:04]} 21. Rg2 {[%clk 0:01:33]}  Qf7 {[%clk 0:02:02]} 22. d5 {[%clk 0:01:19]}  Re5 {[%clk 0:02:02]} 23. Rg5 {[%clk 0:01:09]}  Rce8 {[%clk 0:02:00]} 24. Qa2 {[%clk 0:00:52]}  h6 {[%clk 0:01:55]} 25. Rg2 {[%clk 0:00:50]}  Bc8 {[%clk 0:01:53]} 26. Nb3 {[%clk 0:00:48]}  Bh3 {[%clk 0:01:31]} 27. Rg3 {[%clk 0:00:41]}  Qd7 {[%clk 0:01:32]} 28. Nxa5 {[%clk 0:00:40]}  bxa5 {[%clk 0:01:33]} 29. Qb3 {[%clk 0:00:38]}  Bg4 {[%clk 0:01:33]} 30. Bxg4 {[%clk 0:00:22]}  Nxg4 {[%clk 0:01:33]} 31. Qb5 {[%clk 0:00:23]}  Qf5 {[%clk 0:01:29]} 32. Rd2 {[%clk 0:00:18]}  Rf8 {[%clk 0:01:29]} 33. Qb7 {[%clk 0:00:10]}  Kh7 {[%clk 0:01:21]} 34. Re2 {[%clk 0:00:09]}  Rf7 {[%clk 0:01:20]} 35. Qb2 {[%clk 0:00:08]}  Nh2 {[%clk 0:01:19]} 36. Qb8 {[%clk 0:00:06]}  Nf3+ {[%clk 0:01:18]} 37. Kd1 {[%clk 0:00:06]}  Nxh4 {[%clk 0:01:17]} 38. Qxd6 {[%clk 0:00:05]}  Qh5 {[%clk 0:01:12]} 39. Bxc5 {[%clk 0:00:04]}  Rxf2 {[%clk 0:01:09]} 40. Qxe5 {[%clk 0:00:02]}  Qxe2+ {[%clk 0:01:08]} 0-1


[Site "https://www.chess.com"]

[Event "Titled Tuesday Blitz April 11 Early 2023"]
[White "Rohith Krishna S"]
[Black "Corrales Jimenez, Fidel"]
[WhiteFideId "46617051"]
[BlackFideId "3506690"]
[WhiteElo "2270"]
[BlackElo "2541"]
[Result "1-0"]
[Round "09"]
[TimeControl "180+2"]
[Date "2023.04.11"]
[WhiteClock "0:00:15"]
[BlackClock "0:00:02"]

1. d4 {[%clk 0:03:00]}  Nf6 {[%clk 0:02:58]} 2. c4 {[%clk 0:03:00]}  g6 {[%clk 0:02:58]} 3. Nc3 {[%clk 0:03:00]}  d5 {[%clk 0:02:58]} 4. cxd5 {[%clk 0:03:00]}  Nxd5 {[%clk 0:02:58]} 5. e4 {[%clk 0:03:00]}  Nxc3 {[%clk 0:02:58]} 6. bxc3 {[%clk 0:03:01]}  Bg7 {[%clk 0:02:59]} 7. Nf3 {[%clk 0:02:59]}  c5 {[%clk 0:02:59]} 8. Bb5+ {[%clk 0:02:59]}  Nc6 {[%clk 0:03:00]} 9. O-O {[%clk 0:02:59]}  O-O {[%clk 0:03:00]} 10. Be3 {[%clk 0:02:55]}  Qa5 {[%clk 0:02:59]} 11. Bxc6 {[%clk 0:02:53]}  bxc6 {[%clk 0:03:00]} 12. e5 {[%clk 0:02:52]}  Ba6 {[%clk 0:02:57]} 13. Re1 {[%clk 0:02:51]}  Bc4 {[%clk 0:02:57]} 14. Nd2 {[%clk 0:02:49]}  Qa6 {[%clk 0:02:54]} 15. Nxc4 {[%clk 0:02:45]}  Qxc4 {[%clk 0:02:55]} 16. Qb3 {[%clk 0:02:45]}  Qa6 {[%clk 0:02:51]} 17. e6 {[%clk 0:02:40]}  f5 {[%clk 0:02:50]} 18. dxc5 {[%clk 0:02:41]}  Rab8 {[%clk 0:02:49]} 19. Qc2 {[%clk 0:02:35]}  Qc4 {[%clk 0:02:48]} 20. Rad1 {[%clk 0:02:34]}  Qxc3 {[%clk 0:02:30]} 21. Qa4 {[%clk 0:02:31]}  Rb5 {[%clk 0:02:18]} 22. Qxa7 {[%clk 0:02:29]}  Qf6 {[%clk 0:02:05]} 23. Bd4 {[%clk 0:02:17]}  Qh4 {[%clk 0:02:05]} 24. g3 {[%clk 0:02:10]}  Qg5 {[%clk 0:01:57]} 25. h4 {[%clk 0:02:08]}  Qh6 {[%clk 0:00:38]} 26. Qxe7 {[%clk 0:02:06]}  f4 {[%clk 0:00:38]} 27. Bxg7 {[%clk 0:01:31]}  Qxg7 {[%clk 0:00:39]} 28. Qd6 {[%clk 0:01:04]}  fxg3 {[%clk 0:00:34]} 29. fxg3 {[%clk 0:01:05]}  Qc3 {[%clk 0:00:19]} 30. e7 {[%clk 0:00:59]}  Re8 {[%clk 0:00:20]} 31. Qe6+ {[%clk 0:00:58]}  Kg7 {[%clk 0:00:20]} 32. Re3 {[%clk 0:00:39]}  Qxc5 {[%clk 0:00:18]} 33. Rf1 {[%clk 0:00:37]}  Kh6 {[%clk 0:00:12]} 34. Kh2 {[%clk 0:00:24]}  Rb2+ {[%clk 0:00:11]} 35. Kh3 {[%clk 0:00:19]}  Qc2 {[%clk 0:00:11]} 36. Qf6 {[%clk 0:00:14]}  Qg2+ {[%clk 0:00:11]} 37. Kg4 {[%clk 0:00:14]}  Rb4+ {[%clk 0:00:10]} 38. Rf4 {[%clk 0:00:15]}  c5 {[%clk 0:00:05]} 39. Qf8+ {[%clk 0:00:14]}  Rxf8 {[%clk 0:00:02]} 40. exf8=Q# {[%clk 0:00:15]} 1-0


[Site "https://www.chess.com"]

[Event "Titled Tuesday Blitz April 11 Early 2023"]
[White "Rakhmatullaev, Almas"]
[Black "Bacallao Alonso, Yusnel"]
[WhiteFideId "14205793"]
[BlackFideId "3507416"]
[WhiteElo "2221"]
[BlackElo "2561"]
[Result "0-1"]
[Round "09"]
[TimeControl "180+2"]
[Date "2023.04.11"]
[WhiteClock "0:00:04"]
[BlackClock "0:00:06"]

1. e4 {[%clk 0:03:00]}  c6 {[%clk 0:02:58]} 2. Nf3 {[%clk 0:03:00]}  d5 {[%clk 0:02:59]} 3. d3 {[%clk 0:03:01]}  g6 {[%clk 0:02:59]} 4. exd5 {[%clk 0:03:01]}  cxd5 {[%clk 0:02:58]} 5. d4 {[%clk 0:03:01]}  Bg7 {[%clk 0:02:59]} 6. Bd3 {[%clk 0:03:02]}  Nc6 {[%clk 0:02:59]} 7. c3 {[%clk 0:03:02]}  Nf6 {[%clk 0:02:57]} 8. O-O {[%clk 0:03:02]}  Bf5 {[%clk 0:02:57]} 9. Re1 {[%clk 0:03:00]}  Bxd3 {[%clk 0:02:57]} 10. Qxd3 {[%clk 0:03:00]}  O-O {[%clk 0:02:57]} 11. Nbd2 {[%clk 0:03:00]}  e6 {[%clk 0:02:56]} 12. Nf1 {[%clk 0:02:56]}  Ne4 {[%clk 0:02:56]} 13. Bf4 {[%clk 0:02:53]}  Rc8 {[%clk 0:02:52]} 14. Re2 {[%clk 0:02:53]}  Qb6 {[%clk 0:02:46]} 15. Ng3 {[%clk 0:02:51]}  f5 {[%clk 0:02:45]} 16. Rae1 {[%clk 0:02:36]}  h6 {[%clk 0:02:40]} 17. h4 {[%clk 0:02:33]}  Kh7 {[%clk 0:02:28]} 18. Nf1 {[%clk 0:02:17]}  Qd8 {[%clk 0:02:26]} 19. Bc1 {[%clk 0:02:09]}  Bf6 {[%clk 0:02:17]} 20. Qe3 {[%clk 0:02:03]}  g5 {[%clk 0:02:02]} 21. hxg5 {[%clk 0:02:04]}  hxg5 {[%clk 0:02:02]} 22. N3h2 {[%clk 0:02:04]}  Qb6 {[%clk 0:01:40]} 23. g4 {[%clk 0:01:50]}  Kg6 {[%clk 0:01:30]} 24. Qd3 {[%clk 0:01:35]}  Rh8 {[%clk 0:01:26]} 25. f3 {[%clk 0:01:29]}  Rh3 {[%clk 0:01:25]} 26. Re3 {[%clk 0:01:07]}  Nxd4 {[%clk 0:01:06]} 27. fxe4 {[%clk 0:00:58]}  dxe4 {[%clk 0:00:54]} 28. gxf5+ {[%clk 0:00:57]}  exf5 {[%clk 0:00:54]} 29. Qd1 {[%clk 0:00:54]}  Nf3+ {[%clk 0:00:50]} 30. Nxf3 {[%clk 0:00:52]}  exf3 {[%clk 0:00:50]} 31. Qb3 {[%clk 0:00:35]}  Qc6 {[%clk 0:00:21]} 32. Qe6 {[%clk 0:00:24]}  g4 {[%clk 0:00:20]} 33. Qxc6 {[%clk 0:00:20]}  bxc6 {[%clk 0:00:20]} 34. Re6 {[%clk 0:00:19]}  Rch8 {[%clk 0:00:17]} 35. Bf4 {[%clk 0:00:19]}  Kf7 {[%clk 0:00:16]} 36. Ng3 {[%clk 0:00:08]}  Rh2 {[%clk 0:00:14]} 37. Rxf6+ {[%clk 0:00:06]}  Kxf6 {[%clk 0:00:14]} 38. Be5+ {[%clk 0:00:04]}  Kg6 {[%clk 0:00:11]} 39. Bxh8 {[%clk 0:00:04]}  f2+ {[%clk 0:00:11]} 40. Kxh2 {[%clk 0:00:03]}  fxe1=Q {[%clk 0:00:12]} 41. Bd4 {[%clk 0:00:04]}  f4 {[%clk 0:00:09]} 42. Nh1 {[%clk 0:00:04]}  Qe2+ {[%clk 0:00:08]} 43. Kg1 {[%clk 0:00:04]}  g3 {[%clk 0:00:06]} 44. a4 {[%clk 0:00:04]}  Kf5 {[%clk 0:00:06]} 45. Bxa7 {[%clk 0:00:04]}  Kg4 {[%clk 0:00:06]} 46. Bf2 {[%clk 0:00:04]}  Kf3 {[%clk 0:00:06]} 47. Bxg3 {[%clk 0:00:04]}  fxg3 {[%clk 0:00:06]} 48. Nxg3 {[%clk 0:00:04]}  Qg2# {[%clk 0:00:06]} 0-1


[Site "https://www.chess.com"]

[Event "Titled Tuesday Blitz April 11 Early 2023"]
[White "Fishchuk, Vladyslav"]
[Black "Kukhmazov, Arsen"]
[WhiteFideId "34122117"]
[BlackFideId "24108260"]
[WhiteElo "2082"]
[BlackElo "2396"]
[Result "0-1"]
[Round "09"]
[TimeControl "180+2"]
[Date "2023.04.11"]
[WhiteClock "0:00:02"]
[BlackClock "0:00:15"]

1. d4 {[%clk 0:03:00]}  d5 {[%clk 0:02:59]} 2. Nc3 {[%clk 0:03:01]}  c6 {[%clk 0:02:58]} 3. Bf4 {[%clk 0:03:01]}  b5 {[%clk 0:02:57]} 4. e3 {[%clk 0:02:59]}  e6 {[%clk 0:02:52]} 5. Nf3 {[%clk 0:02:58]}  a5 {[%clk 0:02:51]} 6. Bd3 {[%clk 0:02:55]}  a4 {[%clk 0:02:52]} 7. a3 {[%clk 0:02:51]}  b4 {[%clk 0:02:52]} 8. axb4 {[%clk 0:02:50]}  Bxb4 {[%clk 0:02:53]} 9. O-O {[%clk 0:02:50]}  a3 {[%clk 0:02:53]} 10. Nb1 {[%clk 0:02:37]}  a2 {[%clk 0:02:45]} 11. Nc3 {[%clk 0:02:37]}  Bxc3 {[%clk 0:02:46]} 12. bxc3 {[%clk 0:02:38]}  Qa5 {[%clk 0:02:22]} 13. Qd2 {[%clk 0:02:24]}  Nf6 {[%clk 0:02:17]} 14. c4 {[%clk 0:02:22]}  Nbd7 {[%clk 0:02:06]} 15. c5 {[%clk 0:01:56]}  Ne4 {[%clk 0:01:57]} 16. Bxe4 {[%clk 0:01:50]}  dxe4 {[%clk 0:01:58]} 17. Qxa5 {[%clk 0:01:51]}  Rxa5 {[%clk 0:01:59]} 18. Nd2 {[%clk 0:01:51]}  Ba6 {[%clk 0:01:57]} 19. c4 {[%clk 0:01:44]}  f5 {[%clk 0:01:48]} 20. Rfc1 {[%clk 0:01:43]}  e5 {[%clk 0:01:19]} 21. Bxe5 {[%clk 0:01:39]}  Nxe5 {[%clk 0:01:19]} 22. dxe5 {[%clk 0:01:40]}  Ke7 {[%clk 0:01:19]} 23. Rc2 {[%clk 0:01:35]}  Rd8 {[%clk 0:01:19]} 24. Raxa2 {[%clk 0:00:43]}  Rxa2 {[%clk 0:01:20]} 25. Rxa2 {[%clk 0:00:44]}  Bxc4 {[%clk 0:01:20]} 26. Rb2 {[%clk 0:00:44]}  Bb5 {[%clk 0:01:18]} 27. f4 {[%clk 0:00:39]}  exf3 {[%clk 0:01:07]} 28. Nxf3 {[%clk 0:00:39]}  Rd5 {[%clk 0:01:07]} 29. Rc2 {[%clk 0:00:34]}  Bd3 {[%clk 0:01:03]} 30. Rc3 {[%clk 0:00:34]}  Be4 {[%clk 0:01:03]} 31. Nd4 {[%clk 0:00:32]}  Rxe5 {[%clk 0:01:03]} 32. Kf2 {[%clk 0:00:28]}  Kf6 {[%clk 0:01:03]} 33. h4 {[%clk 0:00:25]}  h6 {[%clk 0:01:00]} 34. g3 {[%clk 0:00:21]}  g5 {[%clk 0:01:00]} 35. hxg5+ {[%clk 0:00:22]}  hxg5 {[%clk 0:01:00]} 36. Rc1 {[%clk 0:00:22]}  Kg6 {[%clk 0:00:54]} 37. Rc3 {[%clk 0:00:22]}  Kf7 {[%clk 0:00:39]} 38. Rc1 {[%clk 0:00:21]}  Ke7 {[%clk 0:00:37]} 39. Rc3 {[%clk 0:00:19]}  Kd7 {[%clk 0:00:37]} 40. g4 {[%clk 0:00:08]}  f4 {[%clk 0:00:29]} 41. Nf3 {[%clk 0:00:07]}  Rd5 {[%clk 0:00:28]} 42. exf4 {[%clk 0:00:05]}  gxf4 {[%clk 0:00:29]} 43. g5 {[%clk 0:00:05]}  Ke6 {[%clk 0:00:25]} 44. Rc4 {[%clk 0:00:05]}  Kf5 {[%clk 0:00:20]} 45. g6 {[%clk 0:00:04]}  Bxf3 {[%clk 0:00:15]} 46. Kxf3 {[%clk 0:00:05]}  Rd3+ {[%clk 0:00:15]} 47. Ke2 {[%clk 0:00:04]}  Re3+ {[%clk 0:00:14]} 48. Kf2 {[%clk 0:00:04]}  Rg3 {[%clk 0:00:15]} 49. g7 {[%clk 0:00:02]}  Rxg7 {[%clk 0:00:16]} 50. Kf3 {[%clk 0:00:03]}  Rg3+ {[%clk 0:00:16]} 51. Kf2 {[%clk 0:00:04]}  Re3 {[%clk 0:00:16]} 52. Ra4 {[%clk 0:00:03]}  Rc3 {[%clk 0:00:15]} 53. Ra5 {[%clk 0:00:02]}  Kg4 {[%clk 0:00:15]} 0-1


[Site "https://www.chess.com"]

[Event "Titled Tuesday Blitz April 11 Early 2023"]
[White "Chernobay, Artem"]
[Black "Bacrot, Etienne"]
[WhiteFideId "4167406"]
[BlackFideId "605506"]
[WhiteElo "2474"]
[BlackElo "2663"]
[Result "1-0"]
[Round "09"]
[TimeControl "180+2"]
[Date "2023.04.11"]
[WhiteClock "0:00:04"]
[BlackClock "0:00:01"]

1. e4 {[%clk 0:03:00]}  c5 {[%clk 0:02:56]} 2. Nf3 {[%clk 0:03:00]}  d6 {[%clk 0:02:56]} 3. d4 {[%clk 0:02:59]}  cxd4 {[%clk 0:02:56]} 4. Nxd4 {[%clk 0:02:59]}  Nf6 {[%clk 0:02:57]} 5. Nc3 {[%clk 0:02:59]}  Nc6 {[%clk 0:02:57]} 6. Bg5 {[%clk 0:02:58]}  e6 {[%clk 0:02:57]} 7. Qd2 {[%clk 0:02:57]}  a6 {[%clk 0:02:57]} 8. O-O-O {[%clk 0:02:57]}  Bd7 {[%clk 0:02:58]} 9. f3 {[%clk 0:02:56]}  Nxd4 {[%clk 0:02:56]} 10. Qxd4 {[%clk 0:02:55]}  Be7 {[%clk 0:02:55]} 11. h4 {[%clk 0:02:49]}  b5 {[%clk 0:02:42]} 12. a3 {[%clk 0:02:39]}  Rc8 {[%clk 0:02:40]} 13. g4 {[%clk 0:02:37]}  Qc7 {[%clk 0:02:35]} 14. Be3 {[%clk 0:02:26]}  O-O {[%clk 0:02:15]} 15. h5 {[%clk 0:02:21]}  e5 {[%clk 0:01:48]} 16. Qd2 {[%clk 0:02:20]}  Be6 {[%clk 0:01:48]} 17. g5 {[%clk 0:02:15]}  Nd7 {[%clk 0:01:48]} 18. g6 {[%clk 0:02:04]}  Nf6 {[%clk 0:01:04]} 19. h6 {[%clk 0:02:03]}  fxg6 {[%clk 0:01:01]} 20. hxg7 {[%clk 0:02:03]}  Rf7 {[%clk 0:01:01]} 21. Bh3 {[%clk 0:01:57]}  Qd7 {[%clk 0:00:57]} 22. Bxe6 {[%clk 0:01:52]}  Qxe6 {[%clk 0:00:58]} 23. Bh6 {[%clk 0:01:26]}  Ne8 {[%clk 0:00:39]} 24. Nd5 {[%clk 0:01:20]}  Bf6 {[%clk 0:00:37]} 25. Rh2 {[%clk 0:01:13]}  Bxg7 {[%clk 0:00:36]} 26. Rdh1 {[%clk 0:01:09]}  Nf6 {[%clk 0:00:17]} 27. Bxg7 {[%clk 0:00:34]}  Rxg7 {[%clk 0:00:16]} 28. Nxf6+ {[%clk 0:00:25]}  Qxf6 {[%clk 0:00:17]} 29. Rh3 {[%clk 0:00:20]}  Qe6 {[%clk 0:00:13]} 30. Kb1 {[%clk 0:00:18]}  Rf8 {[%clk 0:00:12]} 31. Qc3 {[%clk 0:00:09]}  Qc4 {[%clk 0:00:10]} 32. Qa5 {[%clk 0:00:08]}  Qc6 {[%clk 0:00:07]} 33. Qd2 {[%clk 0:00:06]}  Rgf7 {[%clk 0:00:05]} 34. Rh6 {[%clk 0:00:05]}  Rc8 {[%clk 0:00:04]} 35. Qh2 {[%clk 0:00:04]}  Rg7 {[%clk 0:00:01]} 36. Rxh7 {[%clk 0:00:04]} 1-0


[Site "https://www.chess.com"]

[Event "Titled Tuesday Blitz April 11 Early 2023"]
[White "Arias, Juan Cruz"]
[Black "Cherniaiev, Tykhon"]
[WhiteFideId "118540"]
[BlackFideId "14182360"]
[WhiteElo "2243"]
[BlackElo "2450"]
[Result "0-1"]
[Round "09"]
[TimeControl "180+2"]
[Date "2023.04.11"]
[WhiteClock "0:00:21"]
[BlackClock "0:00:13"]

1. d4 {[%clk 0:03:00]}  Nf6 {[%clk 0:02:52]} 2. Nf3 {[%clk 0:02:59]}  e6 {[%clk 0:02:51]} 3. e3 {[%clk 0:03:00]}  c5 {[%clk 0:02:50]} 4. Bd3 {[%clk 0:02:57]}  Nc6 {[%clk 0:02:49]} 5. O-O {[%clk 0:02:56]}  Qc7 {[%clk 0:02:49]} 6. c4 {[%clk 0:02:51]}  d5 {[%clk 0:02:38]} 7. Nc3 {[%clk 0:02:45]}  a6 {[%clk 0:02:34]} 8. a3 {[%clk 0:02:37]}  cxd4 {[%clk 0:02:18]} 9. exd4 {[%clk 0:02:36]}  dxc4 {[%clk 0:02:18]} 10. Bxc4 {[%clk 0:02:36]}  Be7 {[%clk 0:02:19]} 11. Bg5 {[%clk 0:02:34]}  b5 {[%clk 0:02:14]} 12. Ba2 {[%clk 0:02:32]}  O-O {[%clk 0:02:01]} 13. Rc1 {[%clk 0:02:31]}  Bb7 {[%clk 0:01:56]} 14. d5 {[%clk 0:02:26]}  exd5 {[%clk 0:01:48]} 15. Bxf6 {[%clk 0:02:14]}  Bxf6 {[%clk 0:01:47]} 16. Nxd5 {[%clk 0:02:14]}  Qd6 {[%clk 0:01:35]} 17. b4 {[%clk 0:02:07]}  Rad8 {[%clk 0:01:29]} 18. Qb3 {[%clk 0:01:54]}  Nd4 {[%clk 0:01:07]} 19. Nxf6+ {[%clk 0:01:43]}  Qxf6 {[%clk 0:01:08]} 20. Nxd4 {[%clk 0:01:41]}  Rxd4 {[%clk 0:01:07]} 21. Rcd1 {[%clk 0:01:36]}  Bd5 {[%clk 0:00:41]} 22. Qb1 {[%clk 0:01:25]}  Bxg2 {[%clk 0:00:21]} 23. Rxd4 {[%clk 0:00:50]}  Bxf1 {[%clk 0:00:21]} 24. Rg4 {[%clk 0:00:23]}  Be2 {[%clk 0:00:19]} 25. Rg3 {[%clk 0:00:21]}  Rd8 {[%clk 0:00:16]} 26. Bb3 {[%clk 0:00:22]}  g6 {[%clk 0:00:15]} 27. Qe4 {[%clk 0:00:21]}  Qa1+ {[%clk 0:00:15]} 28. Kg2 {[%clk 0:00:21]}  Qf1# {[%clk 0:00:13]} 0-1


[Site "https://www.chess.com"]

[Event "Titled Tuesday Blitz April 11 Early 2023"]
[White "Vakhidov, Shahzod"]
[Black "Liyanage, Ranindu Dilshan"]
[WhiteFideId "14205270"]
[BlackFideId "9915834"]
[WhiteElo "2212"]
[BlackElo "2199"]
[Result "1-0"]
[Round "09"]
[TimeControl "180+2"]
[Date "2023.04.11"]
[WhiteClock "0:01:28"]
[BlackClock "0:02:15"]

1. d4 {[%clk 0:02:57]}  d5 {[%clk 0:02:59]} 2. Nf3 {[%clk 0:02:52]}  Nf6 {[%clk 0:02:58]} 3. g3 {[%clk 0:02:50]}  e6 {[%clk 0:02:53]} 4. Bg2 {[%clk 0:02:50]}  Be7 {[%clk 0:02:53]} 5. O-O {[%clk 0:02:51]}  O-O {[%clk 0:02:53]} 6. c4 {[%clk 0:02:52]}  dxc4 {[%clk 0:02:54]} 7. Qc2 {[%clk 0:02:52]}  a6 {[%clk 0:02:55]} 8. a4 {[%clk 0:02:51]}  Nc6 {[%clk 0:02:55]} 9. Qxc4 {[%clk 0:02:51]}  Na5 {[%clk 0:02:56]} 10. Qc2 {[%clk 0:02:42]}  b6 {[%clk 0:02:56]} 11. Ne5 {[%clk 0:02:37]}  Bb7 {[%clk 0:02:54]} 12. Bxb7 {[%clk 0:02:36]}  Nxb7 {[%clk 0:02:53]} 13. Nc6 {[%clk 0:02:33]}  Qe8 {[%clk 0:02:53]} 14. Bg5 {[%clk 0:02:21]}  h6 {[%clk 0:02:51]} 15. Nxe7+ {[%clk 0:02:20]}  Qxe7 {[%clk 0:02:51]} 16. Bxf6 {[%clk 0:02:20]}  Qxf6 {[%clk 0:02:52]} 17. Qxc7 {[%clk 0:02:17]}  Na5 {[%clk 0:02:51]} 18. e3 {[%clk 0:01:57]}  Rfc8 {[%clk 0:02:50]} 19. Qxb6 {[%clk 0:01:51]}  Nc4 {[%clk 0:02:47]} 20. Qb7 {[%clk 0:01:46]}  Rab8 {[%clk 0:02:47]} 21. Qxa6 {[%clk 0:01:43]}  Rxb2 {[%clk 0:02:45]} 22. Qxc8+ {[%clk 0:01:43]}  Kh7 {[%clk 0:02:34]} 23. Qxc4 {[%clk 0:01:43]}  Qf3 {[%clk 0:02:22]} 24. Qc3 {[%clk 0:01:36]}  Qe2 {[%clk 0:02:15]} 25. Na3 {[%clk 0:01:28]} 1-0


[Site "https://www.chess.com"]